{"text_format":"3","workbook":"xlsx","n_sheets":2,"sheets":["ALOITUS","BUDJETTITYÖKALU"],"not_rendered":{"defined_names":2},"read":"whole","date_system":"1900"}

{"sheet":"ALOITUS","index":0,"n_rows":7,"n_cols":2,"rows_kept":7}
[null,"TIETOJA TÄSTÄ MALLISTA"]
[null,"Seuraa verkkosivustoon tehtyä alkuinvestointia, sen Edut ja Kustannukset tämän Verkkosivuston budjettityökalu avulla."]
[null,"Täytä Yrityksen nimi ja Päivämäärä."]
[null,"Kirjoita taulukoihin tiedot, joilla voit laskea Yhteensä ja Arviointimittareita."]
[null,"Huomautus:  "]
[null,"BUDJETTITYÖKALU-laskentataulukon sarakkeessa A annetaan lisäohjeita. Tämä teksti on piilotettu tarkoituksella. Jos haluat poistaa tekstin, valitse sarake A ja valitse sitten POISTA. Jos haluat tuoda tekstin näkyviin, valitse sarake A ja muuta sitten fonttiväriä."]
[null,"Jos haluat lisätietoja laskentataulukossa olevista taulukoista, paina VAIHTO ja sitten F10 taulukossa, valitse TAULUKKO-vaihtoehto ja valitse sitten VAIHTOEHTOINEN TEKSTI."]

{"sheet":"BUDJETTITYÖKALU","index":1,"n_rows":43,"n_cols":6,"rows_kept":43,"merged":[[14,1,14,5],[22,1,22,5],[30,1,30,5],[38,1,38,5]]}
["Luo verkkosivuston budjetti tähän laskentataulukkoon. Tämän sarakkeen soluissa on hyödyllisiä ohjeita tämän laskentataulukon käyttöön. Aloita siirtymällä nuolella alaspäin."]
["Kirjoita Yrityksen nimi oikeanpuoleiseen soluun.","Yrityksen nimi"]
["Tämän laskentataulun otsikko on oikealla olevassa solussa.","Verkkosivuston budjettityökalu"]
["Kirjoita Päivämäärä soluun oikealla.","Päivämäärä"]
["Oikealla olevassa solussa on vihje.","Harmaat solut sisältävät laskutoimituksia, joita ei pidä muuttaa."]
["Kirjoita tiedot Prosentti-taulukkoon, joka alkaa oikealla olevasta solusta. Seuraava ohje on solussa A10.","Yrityksen tiedot","Prosentti"]
[null,"Haluttu tuottoprosentti",{"v":0.1,"d":"10%"}]
[null,"Veroprosentti",{"v":0.3,"d":"30%"}]
[]
["Kirjoita tiedot AlkuperäinenInvestointi-taulukkoon, joka alkaa oikealla olevasta solusta. Seuraava ohje on solussa A16.","Verkkosivuston alkuinvestointi","VUOSI","1","2","3"]
[null,"Laitteisto (esim. palvelimet)",{"v":25000,"d":"25,000.00 €"}]
[null,"Ohjelmisto (esim. e-kaupan inventaario-ohjelmisto)",{"v":15000,"d":"15,000.00 €"}]
[null,"Kehitys (esim. kolmannen osapuolen suunnittelu- ja kehitystyö)",{"v":150000,"d":"150,000.00 €"}]
[null,"Alkuinvestoinnit yhteensä",{"$f":"SUBTOTAL(109,AlkuperäinenInvestointi[VUOSI])","v":{"v":190000,"d":"190,000.00 €"}}]
[]
["Kirjoita tiedot Edut-taulukkoon, joka alkaa oikealla olevasta solusta. Seuraava ohje on solussa A24.","Verkkosivuston tuomat edut","VUOSI","1","2","3"]
[null,"Suora myynti",null,{"v":15000,"d":"15,000.00 €"},{"v":50000,"d":"50,000.00 €"},{"v":75000,"d":"75,000.00 €"}]
[null,"Myynnin lisäys tehostuneen mainonnan tai myyntihenkilön tehokkuuden vuoksi",null,{"v":25000,"d":"25,000.00 €"},{"v":25000,"d":"25,000.00 €"},{"v":25000,"d":"25,000.00 €"}]
[null,"Myynnin lisäys kumppaneiden osallistumisen kasvamisen vuoksi",null,{"v":25000,"d":"25,000.00 €"},{"v":25000,"d":"25,000.00 €"},{"v":25000,"d":"25,000.00 €"}]
[null,"Pienemmät matkakustannukset",null,{"v":25000,"d":"25,000.00 €"},{"v":25000,"d":"25,000.00 €"},{"v":25000,"d":"25,000.00 €"}]
[null,"Pienemmät asiakaspalvelukustannukset",null,{"v":50000,"d":"50,000.00 €"},{"v":50000,"d":"50,000.00 €"},{"v":50000,"d":"50,000.00 €"}]
[null,"Edut yhteensä",null,{"$f":"SUBTOTAL(109,Edut[1])","v":{"v":140000,"d":"140,000.00 €"}},{"$f":"SUBTOTAL(109,Edut[2])","v":{"v":175000,"d":"175,000.00 €"}},{"$f":"SUBTOTAL(109,Edut[3])","v":{"v":200000,"d":"200,000.00 €"}}]
[]
["Kirjoita tiedot Kustannukset-taulukkoon, joka alkaa oikealla olevasta solusta. Kaavoja sisältävien solujen arvot lasketaan automaattisesti. Seuraava ohje on solussa A32.","Kustannukset (alkuperäisiä pääomasijoituksia lukuun ottamatta)","VUOSI","1","2","3"]
[null,"Myyntikustannukset",null,{"v":7500,"d":"7,500.00 €"},{"v":25000,"d":"25,000.00 €"},{"v":37500,"d":"37,500.00 €"}]
[null,"Ylläpito",null,{"v":15000,"d":"15,000.00 €"},{"v":15000,"d":"15,000.00 €"},{"v":15000,"d":"15,000.00 €"}]
[null,"Projektinhallinta, asiakastuki",null,{"v":35000,"d":"35,000.00 €"},{"v":35000,"d":"35,000.00 €"},{"v":35000,"d":"35,000.00 €"}]
[null,"Verkkomainonta, hakukonerekisteröinti",null,{"v":10000,"d":"10,000.00 €"},{"v":10000,"d":"10,000.00 €"},{"v":10000,"d":"10,000.00 €"}]
[null,"Pääomasijoitusten poistot (laskutoimituksessa käytetään kolmen vuoden ajanjaksoa)",null,{"$f":"AlkuperäinenInvestointi[[#Totals],[VUOSI]]/3","v":{"v":63333.333333333336,"d":"63,333.33 €"}},{"$f":"AlkuperäinenInvestointi[[#Totals],[VUOSI]]/3","v":{"v":63333.333333333336,"d":"63,333.33 €"}},{"$f":"AlkuperäinenInvestointi[[#Totals],[VUOSI]]/3","v":{"v":63333.333333333336,"d":"63,333.33 €"}}]
[null,"Kokonaiskustannukset",null,{"$f":"SUBTOTAL(109,Kustannukset[1])","v":{"v":130833.33333333334,"d":"130,833.33 €"}},{"$f":"SUBTOTAL(109,Kustannukset[2])","v":{"v":148333.33333333334,"d":"148,333.33 €"}},{"$f":"SUBTOTAL(109,Kustannukset[3])","v":{"v":160833.33333333334,"d":"160,833.33 €"}}]
[]
["Summat lasketaan automaattisesti Yhteensä-taulukkoon oikealla olevasta solusta aloittaen. Seuraava ohje on solussa A40.","Yhteensä","VUOSI","1","2","3"]
[null,"Nettoedut (kustannukset)",null,{"$f":"Edut[[#Totals],[1]]-Kustannukset[[#Totals],[1]]","v":{"v":9166.666666666657,"d":"9,166.67 €"}},{"$f":"Edut[[#Totals],[2]]-Kustannukset[[#Totals],[2]]","v":{"v":26666.666666666657,"d":"26,666.67 €"}},{"$f":"Edut[[#Totals],[3]]-Kustannukset[[#Totals],[3]]","v":{"v":39166.66666666666,"d":"39,166.67 €"}}]
[null,"Verot",null,{"$f":"D33*Veroprosentti","v":{"v":2749.999999999997,"d":"2,750.00 €"}},{"$f":"E33*Veroprosentti","v":{"v":7999.999999999996,"d":"8,000.00 €"}},{"$f":"F33*Veroprosentti","v":{"v":11749.999999999996,"d":"11,750.00 €"}}]
[null,"Arvo verojen jälkeen",null,{"$f":"D33-D34","v":{"v":6416.666666666661,"d":"6,416.67 €"}},{"v":18666.66666666666,"d":"18,666.67 €"},{"v":27416.66666666666,"d":"27,416.67 €"}]
[null,"Takaisin lisätyt poistot",null,{"$f":"D29","v":{"v":63333.333333333336,"d":"63,333.33 €"}},{"$f":"E29","v":{"v":63333.333333333336,"d":"63,333.33 €"}},{"$f":"F29","v":{"v":63333.333333333336,"d":"63,333.33 €"}}]
[null,"Kassavirta",{"$f":"-AlkuperäinenInvestointi[[#Totals],[VUOSI]]","v":{"v":-190000,"d":"-190,000.00 €"}},{"$f":"D35+D36","v":{"v":69750,"d":"69,750.00 €"}},{"v":82000,"d":"82,000.00 €"},{"v":90750,"d":"90,750.00 €"}]
[null,"Kumulatiivinen kassavirta",{"$f":"C37","v":{"v":-190000,"d":"-190,000.00 €"}},{"$f":"C38+D37","v":{"v":-120250,"d":"-120,250.00 €"}},{"v":-38250,"d":"-38,250.00 €"},{"v":52500,"d":"52,500.00 €"}]
[]
["Arviointimittarit lasketaan automaattisesti Mittarit-taulukkoon oikealla olevasta solusta aloittaen.","Arviointimittarit","Arvot"]
[null,"Nettonykyarvo",{"$f":"C37+(NPV(Tuottoprosentti,D37:F37))","v":{"v":9359.504132231377,"d":"9,359.50 €"}}]
[null,"Sisäinen tuottoprosentti",{"$f":"IRR(C37:F37)","v":{"v":0.12655165144706393,"d":"12.66%"}}]
[null,"Takaisinmaksuaika (vuosina)",{"$f":"IF(F38<=0,\"Yli 3 vuotta\",IF(E38<=0,(F37-F38)/F37+2,IF(D38<=0,(E37-E38)/E37+1,IF(C38<=0,(D37-D38)/D37,\"Puuttuu\"))))","v":{"v":2.4214876033057853,"d":"2.42"}}]